[Event "*** Titled Tuesday Blitz"]
[Site "Chess.com"]
[Date "2021.03.30"]
[Round "10"]
[White "LamaChampetre"]
[Black "Nemsko"]
[Result "0-1"]
[WhiteElo "2218"]
[BlackElo "2317"]
[TimeControl "180+1"]
[EndTime "11:57:06 PDT"]
[Termination "Nemsko won by resignation"]

1. d4 {[%clk 0:03:00.9]} 1... d5 {[%clk 0:02:58.4]} 2. c4 {[%clk 0:03:00.9]}
2... e6 {[%clk 0:02:57.8]} 3. Nf3 {[%clk 0:03:00.4]} 3... Nf6 {[%clk 0:02:57.7]}
4. g3 {[%clk 0:03:00.7]} 4... Bb4+ {[%clk 0:02:57.6]} 5. Bd2 {[%clk 0:02:58.6]}
5... Be7 {[%clk 0:02:57.7]} 6. Bg2 {[%clk 0:02:57.9]} 6... O-O {[%clk
0:02:57.5]} 7. O-O {[%clk 0:02:58]} 7... b6 {[%clk 0:02:57.1]} 8. Qc2 {[%clk
0:02:55.7]} 8... c6 {[%clk 0:02:57.4]} 9. Rd1 {[%clk 0:02:55.3]} 9... Ba6 {[%clk
0:02:57.6]} 10. b3 {[%clk 0:02:54.9]} 10... Nbd7 {[%clk 0:02:58.2]} 11. a4
{[%clk 0:02:54.4]} 11... Rc8 {[%clk 0:02:57.3]} 12. a5 {[%clk 0:02:52.8]} 12...
b5 {[%clk 0:02:50.4]} 13. c5 {[%clk 0:02:48.6]} 13... Ne4 {[%clk 0:02:47.4]} 14.
Bf4 {[%clk 0:02:23]} 14... Bf6 {[%clk 0:02:42.5]} 15. Nc3 {[%clk 0:02:01.6]}
15... Nxc3 {[%clk 0:02:24.6]} 16. Qxc3 {[%clk 0:02:00.6]} 16... b4 {[%clk
0:02:24.8]} 17. Qxb4 {[%clk 0:01:51]} 17... Bxe2 {[%clk 0:02:23.3]} 18. Re1
{[%clk 0:01:51.1]} 18... Bb5 {[%clk 0:02:16.6]} 19. a6 {[%clk 0:01:34.2]} 19...
Re8 {[%clk 0:02:01.3]} 20. Bf1 {[%clk 0:01:26.1]} 20... Bxf1 {[%clk 0:01:57.5]}
21. Kxf1 {[%clk 0:01:27]} 21... Nf8 {[%clk 0:01:57.3]} 22. Bd6 {[%clk
0:01:18.3]} 22... Qd7 {[%clk 0:01:50.4]} 23. Qd2 {[%clk 0:01:13.3]} 23... Be7
{[%clk 0:01:47.4]} 24. Bf4 {[%clk 0:01:08]} 24... Bd8 {[%clk 0:01:47]} 25. Ne5
{[%clk 0:01:05.2]} 25... Qe7 {[%clk 0:01:46.9]} 26. Qa2 {[%clk 0:00:54.9]} 26...
f6 {[%clk 0:01:44.3]} 27. Nd3 {[%clk 0:00:53.7]} 27... Bc7 {[%clk 0:01:44.4]}
28. Qa4 {[%clk 0:00:43.4]} 28... Bxf4 {[%clk 0:01:42.7]} 29. gxf4 {[%clk
0:00:41.1]} 29... Qf7 {[%clk 0:01:39.1]} 30. Re3 {[%clk 0:00:36.5]} 30... Qh5
{[%clk 0:01:28.2]} 31. Kg2 {[%clk 0:00:30]} 31... Ng6 {[%clk 0:01:27.5]} 32.
Rae1 {[%clk 0:00:19.6]} 32... Nh4+ {[%clk 0:01:23.7]} 33. Kf1 {[%clk 0:00:16.8]}
33... Nf3 {[%clk 0:01:23.3]} 34. Rxf3 {[%clk 0:00:13]} 34... Qxf3 {[%clk
0:01:22.9]} 35. Nb4 {[%clk 0:00:11]} 35... Qh1+ {[%clk 0:01:06.6]} 36. Ke2
{[%clk 0:00:10.7]} 36... Qe4+ {[%clk 0:01:06.9]} 37. Kf1 {[%clk 0:00:10.8]}
37... Qxd4 {[%clk 0:01:05]} 38. Nxc6 {[%clk 0:00:10.5]} 38... Qxa4 {[%clk
0:01:04.4]} 39. bxa4 {[%clk 0:00:04.1]} 39... Rxc6 {[%clk 0:01:04.8]} 0-1

[Event "*** Titled Tuesday Blitz"]
[Site "Chess.com"]
[Date "2021.03.30"]
[Round "10"]
[White "sorrm8thatscheckm8"]
[Black "swimmerchess"]
[Result "1/2-1/2"]
[WhiteElo "2643"]
[BlackElo "2827"]
[TimeControl "180+1"]
[EndTime "11:57:08 PDT"]
[Termination "Game drawn by agreement"]

1. d4 {[%clk 0:03:00.9]} 1... Nf6 {[%clk 0:02:38.8]} 2. c4 {[%clk 0:03:01.3]}
2... g6 {[%clk 0:02:39.1]} 3. g3 {[%clk 0:03:00.9]} 3... Bg7 {[%clk 0:02:39.5]}
4. Bg2 {[%clk 0:03:01.5]} 4... O-O {[%clk 0:02:40.4]} 5. Nc3 {[%clk 0:03:00.7]}
5... d6 {[%clk 0:02:41.3]} 6. Nf3 {[%clk 0:03:00.7]} 6... Nbd7 {[%clk
0:02:42.2]} 7. O-O {[%clk 0:03:01.1]} 7... e5 {[%clk 0:02:43.1]} 8. e4 {[%clk
0:03:01.7]} 8... exd4 {[%clk 0:02:43.8]} 9. Nxd4 {[%clk 0:03:02.6]} 9... Re8
{[%clk 0:02:44.7]} 10. h3 {[%clk 0:03:02.6]} 10... a6 {[%clk 0:02:45.1]} 11. Re1
{[%clk 0:03:03]} 11... Rb8 {[%clk 0:02:45.6]} 12. Be3 {[%clk 0:03:01.4]} 12...
Ne5 {[%clk 0:02:45.7]} 13. b3 {[%clk 0:03:01]} 13... c5 {[%clk 0:02:46.3]} 14.
Nde2 {[%clk 0:03:00.5]} 14... b5 {[%clk 0:02:47.2]} 15. f4 {[%clk 0:03:00.7]}
15... Ned7 {[%clk 0:02:46.4]} 16. Qxd6 {[%clk 0:02:59.4]} 16... b4 {[%clk
0:02:46.7]} 17. e5 {[%clk 0:02:59.6]} 17... bxc3 {[%clk 0:02:44.9]} 18. Nxc3
{[%clk 0:03:00.5]} 18... Rb6 {[%clk 0:02:44.5]} 19. Qd2 {[%clk 0:02:57.9]} 19...
Nh5 {[%clk 0:02:32.1]} 20. g4 {[%clk 0:02:53.6]} 20... Nxf4 {[%clk 0:01:48.4]}
21. Bxf4 {[%clk 0:02:51.9]} 21... Rbe6 {[%clk 0:01:49]} 22. Rad1 {[%clk
0:02:47.2]} 22... Qa5 {[%clk 0:01:42.9]} 23. Nd5 {[%clk 0:02:43.8]} 23... Qxd2
{[%clk 0:01:19.8]} 24. Rxd2 {[%clk 0:02:44.7]} 24... Nxe5 {[%clk 0:01:19.7]} 25.
Red1 {[%clk 0:02:30.7]} 25... Rf8 {[%clk 0:01:06.6]} 26. Nc7 {[%clk 0:02:16.4]}
26... Re7 {[%clk 0:01:04]} 27. Nd5 {[%clk 0:02:13.6]} 27... Re6 {[%clk
0:00:48.2]} 28. Be3 {[%clk 0:02:13.4]} 28... Nd7 {[%clk 0:00:47.6]} 29. Bf2
{[%clk 0:02:11.5]} 29... Bh6 {[%clk 0:00:44.2]} 30. Rc2 {[%clk 0:02:09.7]} 30...
Rfe8 {[%clk 0:00:40.9]} 31. Nc7 {[%clk 0:02:00.4]} 31... Re2 {[%clk 0:00:40.8]}
32. Rxe2 {[%clk 0:02:00.1]} 32... Rxe2 {[%clk 0:00:40.7]} 33. Nxa6 {[%clk
0:01:56.2]} 33... Rxa2 {[%clk 0:00:24.1]} 34. Nxc5 {[%clk 0:01:53.1]} 34... Nf8
{[%clk 0:00:19.1]} 35. Rd8 {[%clk 0:01:44.2]} 35... Be6 {[%clk 0:00:17.3]} 36.
Nxe6 {[%clk 0:01:43.6]} 36... fxe6 {[%clk 0:00:18.2]} 37. Bc5 {[%clk 0:01:41.6]}
37... Kf7 {[%clk 0:00:18.2]} 38. Bxf8 {[%clk 0:01:37.3]} 38... Bxf8 {[%clk
0:00:19.1]} 39. Rd1 {[%clk 0:01:36.2]} 39... Bc5+ {[%clk 0:00:18.5]} 40. Kh1
{[%clk 0:01:35.4]} 40... Ke7 {[%clk 0:00:18.6]} 41. Rb1 {[%clk 0:01:33.5]} 41...
Bb4 {[%clk 0:00:18.3]} 42. Kg1 {[%clk 0:01:29.4]} 42... Kd6 {[%clk 0:00:18.6]}
43. Rd1+ {[%clk 0:01:28.2]} 43... Kc7 {[%clk 0:00:19.1]} 44. Bf1 {[%clk
0:01:23.8]} 44... Bc5+ {[%clk 0:00:18.9]} 45. Kh1 {[%clk 0:01:23.2]} 45... Bd6
{[%clk 0:00:19.8]} 46. Bg2 {[%clk 0:01:23.3]} 46... Bc5 {[%clk 0:00:19.2]} 47.
Re1 {[%clk 0:01:21]} 47... Kd6 {[%clk 0:00:19.4]} 48. Rd1+ {[%clk 0:01:19.3]}
48... Kc7 {[%clk 0:00:19.4]} 1/2-1/2

[Event "*** Titled Tuesday Blitz"]
[Site "Chess.com"]
[Date "2021.03.30"]
[Round "10"]
[White "Rytenko_V"]
[Black "Bhagya_2312"]
[Result "0-1"]
[WhiteElo "2383"]
[BlackElo "2200"]
[TimeControl "180+1"]
[EndTime "11:57:17 PDT"]
[Termination "Bhagya_2312 won on time"]

1. d4 {[%clk 0:03:00.9]} 1... d5 {[%clk 0:02:52.3]} 2. Nc3 {[%clk 0:03:00.7]}
2... c6 {[%clk 0:02:51.5]} 3. e4 {[%clk 0:02:59.6]} 3... dxe4 {[%clk 0:02:51.3]}
4. Nxe4 {[%clk 0:03:00.5]} 4... Nf6 {[%clk 0:02:50]} 5. Nxf6+ {[%clk 0:02:59.3]}
5... gxf6 {[%clk 0:02:50.3]} 6. c3 {[%clk 0:02:57.7]} 6... Bf5 {[%clk
0:02:48.9]} 7. Bd3 {[%clk 0:02:56.6]} 7... Bxd3 {[%clk 0:02:44.3]} 8. Qxd3
{[%clk 0:02:57.5]} 8... e6 {[%clk 0:02:42.2]} 9. Ne2 {[%clk 0:02:54.3]} 9... Bd6
{[%clk 0:02:41.4]} 10. Ng3 {[%clk 0:02:53.2]} 10... f5 {[%clk 0:02:35.8]} 11. h4
{[%clk 0:02:36.6]} 11... Nd7 {[%clk 0:02:19.2]} 12. Bg5 {[%clk 0:02:32.6]} 12...
Qc7 {[%clk 0:02:12.9]} 13. O-O-O {[%clk 0:02:26.1]} 13... h6 {[%clk 0:02:11.9]}
14. Bd2 {[%clk 0:02:24.5]} 14... Nf6 {[%clk 0:02:01.8]} 15. Ne2 {[%clk
0:01:59.8]} 15... O-O-O {[%clk 0:01:59.3]} 16. f3 {[%clk 0:01:54.9]} 16... Rdg8
{[%clk 0:01:42.8]} 17. g4 {[%clk 0:01:26.3]} 17... fxg4 {[%clk 0:01:39.7]} 18.
fxg4 {[%clk 0:01:26.7]} 18... Nxg4 {[%clk 0:01:39]} 19. Rdf1 {[%clk 0:01:21]}
19... f5 {[%clk 0:01:38.4]} 20. h5 {[%clk 0:01:05.9]} 20... Qa5 {[%clk
0:01:23.3]} 21. Kb1 {[%clk 0:01:03.7]} 21... Qd5 {[%clk 0:01:22.7]} 22. c4
{[%clk 0:00:29.2]} 22... Qg2 {[%clk 0:01:11.3]} 23. Rhg1 {[%clk 0:00:19.8]}
23... Qh2 {[%clk 0:00:52.8]} 24. Bf4 {[%clk 0:00:18.6]} 24... Bxf4 {[%clk
0:00:51]} 25. Nxf4 {[%clk 0:00:19.5]} 25... Nf2 {[%clk 0:00:48.2]} 26. Rxg8+
{[%clk 0:00:13.1]} 26... Rxg8 {[%clk 0:00:47.7]} 27. Qe3 {[%clk 0:00:10.1]}
27... Ne4 {[%clk 0:00:46]} 28. Nxe6 {[%clk 0:00:07.8]} 28... Nd2+ {[%clk
0:00:44.4]} 29. Ka1 {[%clk 0:00:02.9]} 29... Nxf1 {[%clk 0:00:44.3]} 30. Qf3
{[%clk 0:00:01.8]} 30... Qg1 {[%clk 0:00:38.6]} 0-1

[Event "*** Titled Tuesday Blitz"]
[Site "Chess.com"]
[Date "2021.03.30"]
[Round "10"]
[White "The_Machine04"]
[Black "Witik"]
[Result "0-1"]
[WhiteElo "2427"]
[BlackElo "2677"]
[TimeControl "180+1"]
[EndTime "11:57:21 PDT"]
[Termination "Witik won by checkmate"]

1. d4 {[%clk 0:03:00.9]} 1... d5 {[%clk 0:02:58.9]} 2. Bf4 {[%clk 0:03:00.4]}
2... Nf6 {[%clk 0:02:58.9]} 3. e3 {[%clk 0:02:56.4]} 3... c5 {[%clk 0:02:58.8]}
4. c3 {[%clk 0:02:55.7]} 4... Nc6 {[%clk 0:02:59]} 5. Nd2 {[%clk 0:02:54.9]}
5... Qb6 {[%clk 0:02:59]} 6. Qb3 {[%clk 0:02:53.9]} 6... c4 {[%clk 0:02:59.1]}
7. Qc2 {[%clk 0:02:53.4]} 7... Nh5 {[%clk 0:02:59.1]} 8. Bg3 {[%clk 0:02:45.1]}
8... g6 {[%clk 0:02:51.7]} 9. e4 {[%clk 0:02:43.3]} 9... e6 {[%clk 0:02:45]} 10.
Be2 {[%clk 0:02:38.8]} 10... Nxg3 {[%clk 0:02:44.1]} 11. hxg3 {[%clk 0:02:39.7]}
11... Bd7 {[%clk 0:02:27.1]} 12. e5 {[%clk 0:02:39.2]} 12... Bg7 {[%clk
0:02:07.3]} 13. f4 {[%clk 0:02:38.2]} 13... O-O-O {[%clk 0:02:05.7]} 14. b3
{[%clk 0:02:33.5]} 14... cxb3 {[%clk 0:02:05.5]} 15. axb3 {[%clk 0:02:33.9]}
15... Kb8 {[%clk 0:02:04.7]} 16. Ngf3 {[%clk 0:02:33.3]} 16... f6 {[%clk
0:02:04.6]} 17. O-O {[%clk 0:02:30.3]} 17... fxe5 {[%clk 0:02:04.1]} 18. fxe5
{[%clk 0:02:17.7]} 18... Nxe5 {[%clk 0:02:00]} 19. Ng5 {[%clk 0:02:08.8]} 19...
h6 {[%clk 0:01:46.9]} 20. Nf7 {[%clk 0:02:08.1]} 20... Nxf7 {[%clk 0:01:47.2]}
21. Rxf7 {[%clk 0:02:08.7]} 21... Bxd4+ {[%clk 0:01:47.9]} 22. Kh2 {[%clk
0:01:56.6]} 22... Be5 {[%clk 0:01:36.7]} 23. Nf3 {[%clk 0:01:54.4]} 23... Bc7
{[%clk 0:01:35.3]} 24. Nd4 {[%clk 0:01:53]} 24... h5 {[%clk 0:01:26.7]} 25. Kh1
{[%clk 0:01:24.5]} 25... h4 {[%clk 0:01:23.9]} 26. g4 {[%clk 0:01:24.4]} 26...
Qd6 {[%clk 0:01:18]} 27. Nf3 {[%clk 0:01:19.8]} 27... e5 {[%clk 0:01:06.3]} 28.
Nd2 {[%clk 0:01:14.9]} 28... e4 {[%clk 0:01:02.3]} 29. Nf1 {[%clk 0:01:14.8]}
29... Rdf8 {[%clk 0:00:57.5]} 30. Rxf8+ {[%clk 0:01:10.3]} 30... Rxf8 {[%clk
0:00:58.4]} 31. Kg1 {[%clk 0:01:11.2]} 31... h3 {[%clk 0:00:32.3]} 32. gxh3
{[%clk 0:01:08.3]} 32... Qc5+ {[%clk 0:00:26.6]} 33. Kh1 {[%clk 0:01:06.1]}
33... Rf2 {[%clk 0:00:20]} 34. Qd1 {[%clk 0:00:56.3]} 34... Qd6 {[%clk
0:00:15.5]} 35. Kg1 {[%clk 0:00:53.5]} 35... Qf4 {[%clk 0:00:15.1]} 36. Qe1
{[%clk 0:00:49.8]} 36... Rxf1+ {[%clk 0:00:09.6]} 37. Qxf1 {[%clk 0:00:47.8]}
37... Qh2# {[%clk 0:00:09.6]} 0-1

[Event "*** Titled Tuesday Blitz"]
[Site "Chess.com"]
[Date "2021.03.30"]
[Round "10"]
[White "PowerThinking2650"]
[Black "KNVB"]
[Result "0-1"]
[WhiteElo "2425"]
[BlackElo "2642"]
[TimeControl "180+1"]
[EndTime "11:57:21 PDT"]
[Termination "KNVB won by resignation"]

1. e4 {[%clk 0:03:00.9]} 1... b6 {[%clk 0:02:58.1]} 2. d4 {[%clk 0:02:54.7]}
2... Bb7 {[%clk 0:02:58.1]} 3. f3 {[%clk 0:02:55.1]} 3... e6 {[%clk 0:02:58.2]}
4. Bd3 {[%clk 0:02:55.2]} 4... d5 {[%clk 0:02:58.5]} 5. e5 {[%clk 0:02:55]} 5...
Ba6 {[%clk 0:02:58.3]} 6. f4 {[%clk 0:02:45.2]} 6... Bxd3 {[%clk 0:02:54.5]} 7.
cxd3 {[%clk 0:02:45.3]} 7... Ne7 {[%clk 0:02:51.5]} 8. Nf3 {[%clk 0:02:44.8]}
8... Qd7 {[%clk 0:02:47.6]} 9. Nc3 {[%clk 0:02:38.2]} 9... h5 {[%clk 0:02:47.2]}
10. Be3 {[%clk 0:02:36.9]} 10... Nf5 {[%clk 0:02:47.3]} 11. Bf2 {[%clk 0:02:37]}
11... Nc6 {[%clk 0:02:37.6]} 12. O-O {[%clk 0:02:33.8]} 12... a6 {[%clk
0:02:33.8]} 13. Rc1 {[%clk 0:02:31.4]} 13... Be7 {[%clk 0:02:33.8]} 14. Qc2
{[%clk 0:02:27.1]} 14... Nb4 {[%clk 0:02:33.4]} 15. Qd2 {[%clk 0:02:25]} 15...
Nc6 {[%clk 0:02:05.8]} 16. a3 {[%clk 0:02:21.4]} 16... a5 {[%clk 0:01:55.7]} 17.
Qc2 {[%clk 0:02:00.4]} 17... Na7 {[%clk 0:01:54.4]} 18. Nd1 {[%clk 0:01:42.3]}
18... Bd8 {[%clk 0:01:43.5]} 19. Ne3 {[%clk 0:01:40.4]} 19... Nxe3 {[%clk
0:01:32.2]} 20. Bxe3 {[%clk 0:01:41.3]} 20... Nc8 {[%clk 0:01:31.5]} 21. Bf2
{[%clk 0:01:01.7]} 21... Ne7 {[%clk 0:01:17.6]} 22. Bh4 {[%clk 0:01:00.7]} 22...
Nf5 {[%clk 0:01:16.6]} 23. Bxd8 {[%clk 0:01:00.5]} 23... Kxd8 {[%clk 0:01:14.2]}
24. Qd2 {[%clk 0:00:49.8]} 24... a4 {[%clk 0:01:06.8]} 25. Rc3 {[%clk
0:00:46.6]} 25... Ra7 {[%clk 0:01:05]} 26. Rfc1 {[%clk 0:00:46.5]} 26... Kc8
{[%clk 0:01:05.2]} 27. Rc6 {[%clk 0:00:43.1]} 27... Kb8 {[%clk 0:01:04.6]} 28.
Qb4 {[%clk 0:00:40.3]} 28... g6 {[%clk 0:01:01.6]} 29. Ng5 {[%clk 0:00:37.3]}
29... Rc8 {[%clk 0:00:53.3]} 30. Nh7 {[%clk 0:00:36]} 30... Qe7 {[%clk
0:00:47.4]} 31. Qxe7 {[%clk 0:00:18.4]} 31... Nxe7 {[%clk 0:00:48.3]} 32. R6c3
{[%clk 0:00:15.6]} 32... Nf5 {[%clk 0:00:44.8]} 33. Ng5 {[%clk 0:00:15.4]} 33...
Nxd4 {[%clk 0:00:43.9]} 34. Nxf7 {[%clk 0:00:15.7]} 34... Ne2+ {[%clk 0:00:44]}
35. Kf2 {[%clk 0:00:15.8]} 35... Nxc1 {[%clk 0:00:44.2]} 36. Rxc1 {[%clk
0:00:15.5]} 36... Rf8 {[%clk 0:00:44.8]} 37. Ng5 {[%clk 0:00:15.4]} 37... Rxf4+
{[%clk 0:00:45.7]} 38. Ke3 {[%clk 0:00:16]} 38... Rf5 {[%clk 0:00:46.1]} 39. Nf3
{[%clk 0:00:14]} 39... c5 {[%clk 0:00:41.2]} 0-1

[Event "*** Titled Tuesday Blitz"]
[Site "Chess.com"]
[Date "2021.03.30"]
[Round "10"]
[White "DonPreuss"]
[Black "Tacticus_Severus"]
[Result "1-0"]
[WhiteElo "2259"]
[BlackElo "2064"]
[TimeControl "180+1"]
[EndTime "11:57:22 PDT"]
[Termination "DonPreuss won on time"]

1. d4 {[%clk 0:03:00.9]} 1... d5 {[%clk 0:02:59.5]} 2. e4 {[%clk 0:03:00.9]}
2... dxe4 {[%clk 0:02:59.2]} 3. Nc3 {[%clk 0:03:00.9]} 3... Nf6 {[%clk
0:02:57.8]} 4. f3 {[%clk 0:03:01]} 4... c6 {[%clk 0:02:57.9]} 5. Nxe4 {[%clk
0:02:47.5]} 5... Nxe4 {[%clk 0:02:51.7]} 6. fxe4 {[%clk 0:02:47.4]} 6... e5
{[%clk 0:02:51.7]} 7. Nf3 {[%clk 0:02:47.3]} 7... Bg4 {[%clk 0:02:45.5]} 8. Bc4
{[%clk 0:02:44.4]} 8... Nd7 {[%clk 0:02:20.4]} 9. O-O {[%clk 0:02:17.3]} 9... f6
{[%clk 0:02:18.5]} 10. c3 {[%clk 0:01:59.8]} 10... Qb6 {[%clk 0:01:56.8]} 11.
Kh1 {[%clk 0:01:54.5]} 11... O-O-O {[%clk 0:01:53.9]} 12. d5 {[%clk 0:01:44.8]}
12... Nc5 {[%clk 0:01:49]} 13. Qe2 {[%clk 0:01:42]} 13... cxd5 {[%clk
0:01:36.1]} 14. Bxd5 {[%clk 0:01:41]} 14... Rxd5 {[%clk 0:01:14.7]} 15. exd5
{[%clk 0:01:39.7]} 15... e4 {[%clk 0:01:14.8]} 16. b4 {[%clk 0:01:27.6]} 16...
exf3 {[%clk 0:00:48.7]} 17. Qe8+ {[%clk 0:01:20]} 17... Qd8 {[%clk 0:00:41.4]}
18. Qxd8+ {[%clk 0:01:16.8]} 18... Kxd8 {[%clk 0:00:42.3]} 19. bxc5 {[%clk
0:01:14.7]} 19... fxg2+ {[%clk 0:00:41]} 20. Kxg2 {[%clk 0:01:13.9]} 20... Bxc5
{[%clk 0:00:41.4]} 21. Re1 {[%clk 0:01:01.9]} 21... Kd7 {[%clk 0:00:25.6]} 22.
Be3 {[%clk 0:01:01.6]} 22... Rc8 {[%clk 0:00:21.6]} 23. Rac1 {[%clk 0:00:44.5]}
23... Bf5 {[%clk 0:00:18.6]} 24. Bxc5 {[%clk 0:00:43.5]} 24... Rxc5 {[%clk
0:00:18.1]} 25. c4 {[%clk 0:00:36.8]} 25... h5 {[%clk 0:00:14.5]} 26. Rc3 {[%clk
0:00:31.6]} 26... h4 {[%clk 0:00:10.3]} 27. Kf3 {[%clk 0:00:23.3]} 27... Kd6
{[%clk 0:00:04.2]} 28. Re8 {[%clk 0:00:21.4]} 1-0

[Event "*** Titled Tuesday Blitz"]
[Site "Chess.com"]
[Date "2021.03.30"]
[Round "10"]
[White "Sweafty"]
[Black "c63_amg"]
[Result "1-0"]
[WhiteElo "2579"]
[BlackElo "2696"]
[TimeControl "180+1"]
[EndTime "11:57:25 PDT"]
[Termination "Sweafty won on time"]

1. Nf3 {[%clk 0:03:00.9]} 1... Nf6 {[%clk 0:02:59.3]} 2. c4 {[%clk 0:03:01.2]}
2... e6 {[%clk 0:02:59.2]} 3. g3 {[%clk 0:03:01.4]} 3... d5 {[%clk 0:02:55.7]}
4. Bg2 {[%clk 0:03:01.7]} 4... Be7 {[%clk 0:02:56.3]} 5. O-O {[%clk 0:03:01.9]}
5... O-O {[%clk 0:02:56.8]} 6. b3 {[%clk 0:03:02.6]} 6... b6 {[%clk 0:02:56.6]}
7. Bb2 {[%clk 0:03:02.9]} 7... Bb7 {[%clk 0:02:57]} 8. e3 {[%clk 0:03:03.6]}
8... Nbd7 {[%clk 0:02:56.4]} 9. Nc3 {[%clk 0:03:04]} 9... c5 {[%clk 0:02:56.3]}
10. Qe2 {[%clk 0:03:04.6]} 10... Rc8 {[%clk 0:02:53.1]} 11. Rad1 {[%clk
0:03:04.1]} 11... Qc7 {[%clk 0:02:52.3]} 12. d3 {[%clk 0:03:04.4]} 12... Rfe8
{[%clk 0:02:51.1]} 13. h3 {[%clk 0:03:05]} 13... Qb8 {[%clk 0:02:50.6]} 14. g4
{[%clk 0:03:05.5]} 14... h6 {[%clk 0:02:01.8]} 15. Ne1 {[%clk 0:02:58.9]} 15...
d4 {[%clk 0:01:52.9]} 16. exd4 {[%clk 0:02:55.4]} 16... cxd4 {[%clk 0:01:52]}
17. Ne4 {[%clk 0:02:55.1]} 17... Nxe4 {[%clk 0:01:50.5]} 18. Bxe4 {[%clk
0:02:56]} 18... Bxe4 {[%clk 0:01:48.3]} 19. Qxe4 {[%clk 0:02:56.9]} 19... Nc5
{[%clk 0:01:41.9]} 20. Qe2 {[%clk 0:02:42.6]} 20... e5 {[%clk 0:01:35.8]} 21. f3
{[%clk 0:02:23.1]} 21... Bg5 {[%clk 0:01:20.5]} 22. Ng2 {[%clk 0:02:22.5]} 22...
Ne6 {[%clk 0:01:01.3]} 23. Bc1 {[%clk 0:02:19.1]} 23... Bxc1 {[%clk 0:01:00.5]}
24. Rxc1 {[%clk 0:02:19]} 24... f5 {[%clk 0:00:55.5]} 25. gxf5 {[%clk
0:01:21.8]} 25... Nf4 {[%clk 0:00:42]} 26. Qe4 {[%clk 0:01:19.1]} 26... Nxh3+
{[%clk 0:00:40.9]} 27. Kh1 {[%clk 0:01:18.6]} 27... Ng5 {[%clk 0:00:39.9]} 28.
Qd5+ {[%clk 0:01:08.7]} 28... Kh7 {[%clk 0:00:40.3]} 29. f4 {[%clk 0:01:09.2]}
29... Rcd8 {[%clk 0:00:35.2]} 30. Qc6 {[%clk 0:01:06.6]} 30... Rd6 {[%clk
0:00:31.1]} 31. Qb5 {[%clk 0:01:07]} 31... exf4 {[%clk 0:00:29.3]} 32. Nxf4
{[%clk 0:01:07.9]} 32... Re3 {[%clk 0:00:28.1]} 33. c5 {[%clk 0:01:02.5]} 33...
Rd5 {[%clk 0:00:11.8]} 34. Qc6 {[%clk 0:00:55.5]} 34... Rxf5 {[%clk 0:00:11]}
35. Qg6+ {[%clk 0:00:49.9]} 35... Kh8 {[%clk 0:00:10]} 36. Qxf5 {[%clk
0:00:50.8]} 36... Qb7+ {[%clk 0:00:09.9]} 37. Nd5 {[%clk 0:00:45]} 37... Qc6
{[%clk 0:00:02.8]} 38. cxb6 {[%clk 0:00:42.5]} 1-0

[Event "*** Titled Tuesday Blitz"]
[Site "Chess.com"]
[Date "2021.03.30"]
[Round "10"]
[White "volunteers1998"]
[Black "Raud100"]
[Result "1/2-1/2"]
[WhiteElo "2210"]
[BlackElo "2392"]
[TimeControl "180+1"]
[EndTime "11:57:28 PDT"]
[Termination "Game drawn by agreement"]

1. e4 {[%clk 0:03:00.9]} 1... d6 {[%clk 0:03:00.1]} 2. d4 {[%clk 0:02:59.8]}
2... Nf6 {[%clk 0:03:01]} 3. Nc3 {[%clk 0:02:57.3]} 3... g6 {[%clk 0:03:00.7]}
4. f4 {[%clk 0:02:55.3]} 4... Bg7 {[%clk 0:03:00.3]} 5. Nf3 {[%clk 0:02:49.6]}
5... c5 {[%clk 0:03:00.4]} 6. Bb5+ {[%clk 0:02:44.3]} 6... Bd7 {[%clk 0:03:00]}
7. Bxd7+ {[%clk 0:02:41.3]} 7... Qxd7 {[%clk 0:02:59.1]} 8. dxc5 {[%clk
0:02:37.5]} 8... dxc5 {[%clk 0:03:00]} 9. Qxd7+ {[%clk 0:02:34]} 9... Nfxd7
{[%clk 0:02:52]} 10. e5 {[%clk 0:02:31.3]} 10... Nc6 {[%clk 0:02:50.5]} 11. Be3
{[%clk 0:02:25.8]} 11... f6 {[%clk 0:02:18.2]} 12. exf6 {[%clk 0:02:22.1]} 12...
exf6 {[%clk 0:02:17.1]} 13. O-O-O {[%clk 0:02:19.4]} 13... O-O-O {[%clk
0:02:16]} 14. Rhe1 {[%clk 0:02:13.5]} 14... Rhe8 {[%clk 0:02:14.7]} 15. Bf2
{[%clk 0:02:06.4]} 15... a6 {[%clk 0:01:44.9]} 16. Rxe8 {[%clk 0:01:58.4]} 16...
Rxe8 {[%clk 0:01:45.8]} 17. Re1 {[%clk 0:01:58]} 17... Rxe1+ {[%clk 0:01:43.7]}
18. Bxe1 {[%clk 0:01:55]} 18... b5 {[%clk 0:01:36.1]} 19. Ne4 {[%clk 0:01:51.3]}
19... Kc7 {[%clk 0:01:29.1]} 20. Bf2 {[%clk 0:01:47.9]} 20... Bf8 {[%clk
0:01:27.6]} 21. c3 {[%clk 0:01:45]} 21... c4 {[%clk 0:01:00.5]} 22. Kd2 {[%clk
0:01:40.5]} 22... Be7 {[%clk 0:00:53.1]} 23. g3 {[%clk 0:01:37.7]} 23... f5
{[%clk 0:00:48.2]} 24. Neg5 {[%clk 0:01:35.9]} 24... Nf6 {[%clk 0:00:48.1]} 25.
Ne6+ {[%clk 0:01:27.2]} 25... Kd6 {[%clk 0:00:41.4]} 26. Ned4 {[%clk 0:01:24.9]}
26... Ne4+ {[%clk 0:00:37.1]} 27. Ke2 {[%clk 0:01:22.7]} 27... Nxd4+ {[%clk
0:00:36]} 28. Nxd4 {[%clk 0:01:21.3]} 28... Kd5 {[%clk 0:00:35.4]} 29. Nc2
{[%clk 0:01:17.7]} 29... h5 {[%clk 0:00:31.9]} 30. Bd4 {[%clk 0:01:14.7]} 30...
h4 {[%clk 0:00:30.3]} 31. Kf3 {[%clk 0:01:07.7]} 31... a5 {[%clk 0:00:21.6]} 32.
Ne3+ {[%clk 0:01:04.3]} 32... Ke6 {[%clk 0:00:20.8]} 33. a4 {[%clk 0:01:00.3]}
33... hxg3 {[%clk 0:00:14.1]} 34. hxg3 {[%clk 0:01:00.3]} 34... bxa4 {[%clk
0:00:12.8]} 35. Nxc4 {[%clk 0:00:59.4]} 35... a3 {[%clk 0:00:08.7]} 36. bxa3
{[%clk 0:00:56.5]} 36... a4 {[%clk 0:00:07.3]} 37. Nb6 {[%clk 0:00:48.5]} 37...
Bxa3 {[%clk 0:00:06.3]} 38. Nxa4 {[%clk 0:00:45.8]} 38... Kd5 {[%clk 0:00:06.8]}
39. Nb6+ {[%clk 0:00:41.4]} 39... Kc6 {[%clk 0:00:05.8]} 1/2-1/2